bitfinex-derivatives/quotes_ETHF0:USTF0_20250430
["timestamp","ask_amount","ask_price","bid_price","bid_amount"]
[1746053276200,1.11685,1790.5,1790.4,1.11686]
[1746053276395,1.1169,1790.4,1790.3,1.1169]
[1746053276597,5.02225,1790.4,1790.3,1.1169]
[1746053276803,1.11698,1790.3,1790.2,1.11698]
[1746053277101,6.67933,1790.3,1790.2,1.11698]
[1746053277299,2.77398,1790.3,1790.2,1.11698]
[1746053278001,1.11702,1790.2,1790.1,3.2078]
[1746053278200,6.67937,1790.2,1790.1,4.32488]
[1746053278400,5.56235,1790.2,1790.1,5.98598]
[1746053279201,5.48314,1790.4,1790.1,4.8689]
[1746053279398,3.563,1790.4,1790.2,1.6611]
[1746053279598,4.6799,1790.4,1790.3,1.11696]
[1746053279795,9.17145,1790.4,1790.3,1.11696]
[1746053280003,10.28835,1790.4,1790.3,1.11696]
[1746053280205,9.17145,1790.4,1790.3,1.11696]
[1746053280403,3.563,1790.4,1790.3,3.57786]
[1746053280804,5.2661,1790.4,1790.3,3.57786]
[1746053281005,3.563,1790.4,1790.3,3.57786]
[1746053281506,2.81991,1790.6,1790.5,1.11683]
[1746053281806,4.81267,1790.8,1790.7,1.11671]
[1746053282100,6.47127,1790.8,1790.7,1.11671]
[1746053282307,10.37662,1790.8,1790.7,1.11671]
[1746053282504,1.11671,1790.7,1790.6,1.91192]
[1746053282699,6.68066,1790.7,1790.6,1.91192]
[1746053282895,1.11667,1790.8,1790.7,1.11671]
[1746053283105,6.68062,1790.8,1790.7,41.91671]
[1746053283307,6.68062,1790.8,1790.7,40.8]
[1746053283608,9.88842,1790.8,1790.7,40.8]
[1746053284711,1.11671,1790.7,1790.6,1.11677]
[1746053285012,6.71466,1790.7,1790.6,1.11677]
[1746053285201,6.71466,1790.7,1790.6,43.51997]
[1746053286403,5.59795,1790.7,1790.6,43.51997]
[1746053286603,5.3594,1790.9,1790.8,1.11665]
[1746053286811,6.2636,1790.9,1790.8,1.11665]
[1746053287010,11.28553,1790.9,1790.8,1.11665]
[1746053287309,11.28553,1790.9,1790.8,1.95685]
[1746053287503,7.58953,1790.9,1790.8,1.95685]
[1746053288199,6.71453,1790.9,1790.8,1.95685]
[1746053288405,1.6926,1790.9,1790.8,2.82595]
[1746053289307,6.71453,1790.9,1790.8,40.8]
[1746053289611,7.55963,1790.9,1790.8,40.8]
[1746053289812,1.11677,1790.6,1790.5,1.11681]
[1746053290011,5.02212,1790.6,1790.5,1.11681]
[1746053290411,5.02212,1790.6,1790.5,41.91681]
[1746053290810,1.11696,1790.3,1790.2,3.2078]
[1746053291111,5.02231,1790.3,1790.2,4.32479]
[1746053291309,1.11696,1790.3,1790.2,45.12479]
[1746053291511,1.7398,1790.5,1790.4,1.1169]
[1746053291512,2.85668,1790.5,1790.4,1.1169]
[1746053292112,6.76203,1790.5,1790.4,1.1169]
[1746053292313,0.813,1790.6,1790.5,1.11683]
[1746053292511,2.5528,1790.6,1790.5,1.11683]
[1746053292814,1.7398,1790.6,1790.5,1.11683]
[1746053293010,1.11683,1790.5,1790.4,1.11688]
[1746053293213,5.02218,1790.5,1790.4,1.11688]
[1746053293409,1.7398,1790.5,1790.4,1.11688]
[1746053294115,1.7398,1790.5,1790.4,2.71688]
[1746053294518,5.3015,1790.8,1790.4,1.6]
[1746053294710,5.02212,1790.6,1790.5,2.7168]
[1746053294910,3.90535,1790.6,1790.5,2.7168]
[1746053295119,1.11683,1790.5,1790.4,0.8669]
[1746053295417,5.60835,1790.5,1790.4,1.98378]
[1746053295718,1.1169,1790.4,1790.3,5.6334]
[1746053295918,2.8199,1790.4,1790.3,6.75032]
[1746053296128,2.8199,1790.4,1790.3,3.54252]
[1746053296416,1.703,1790.4,1790.3,3.54252]
[1746053296718,1.11688,1790.5,1790.3,2.4256]
[1746053296910,1.11679,1790.6,1790.5,1.1168]
[1746053297216,5.02214,1790.6,1790.5,1.1168]
[1746053297418,1.11679,1790.6,1790.5,1.1168]
[1746053298417,1.7461,1790.7,1790.6,1.11677]
[1746053299022,5.60515,1790.8,1790.7,1.11671]
[1746053299226,9.5105,1790.8,1790.7,1.11671]
[1746053299423,9.5105,1790.8,1790.7,2.82821]
[1746053299620,8.39385,1790.8,1790.7,2.82821]
[1746053299927,7.60135,1790.8,1790.7,2.82821]
[1746053300423,9.31545,1790.8,1790.7,2.82821]
[1746053300716,1.7141,1790.8,1790.7,2.82821]
[1746053300922,2.83075,1790.8,1790.7,2.82821]
[1746053302123,1.7141,1790.8,1790.7,2.82821]
[1746053303017,1.6022,1791.0,1790.9,1.11658]
[1746053303326,8.22277,1791.0,1790.9,1.11658]
[1746053303714,8.22277,1791.0,1790.9,3.56688]
[1746053303917,7.10625,1791.0,1790.9,3.56688]
[1746053304123,6.29525,1791.0,1790.9,3.56688]
[1746053304824,7.41177,1791.0,1790.9,3.56688]
[1746053305024,6.29525,1791.0,1790.9,3.56688]
[1746053305726,6.29525,1791.0,1790.9,1.11658]
[1746053306021,2.71522,1791.0,1790.9,3.54768]
[1746053306226,2.4055,1791.0,1790.9,3.54768]
[1746053307020,1.5987,1791.0,1790.9,3.54768]
[1746053308714,1.6053,1791.2,1791.1,1.11646]
[1746053308919,3.2595,1791.2,1791.1,1.11646]
[1746053311420,9.21045888,1791.4,1791.1,1.11646]
[1746053311626,9.21045888,1791.4,1791.3,1.11634]
[1746053312130,9.21045888,1791.4,1791.3,41.91634]
[1746053312325,9.21045888,1791.4,1791.3,43.64414]
[1746053312644,3.2722,1791.5,1791.4,1.11627]
[1746053312823,5.48945,1791.5,1791.4,2.84407]
[1746053313025,1.5841,1791.5,1791.4,2.84407]
[1746053313530,1.5841,1791.5,1791.4,3.66547]
[1746053315531,10.00715888,1791.6,1791.5,1.11621]
[1746053315736,13.91250888,1791.6,1791.5,1.11621]
[1746053315936,15.59640888,1791.6,1791.5,3.53981]
[1746053316234,15.59640888,1791.6,1791.5,44.33981]
[1746053316535,11.69105888,1791.6,1791.5,44.33981]
[1746053316731,10.89435888,1791.6,1791.5,44.33981]
[1746053316935,1.6839,1791.6,1791.5,44.33981]
[1746053317329,1.6839,1791.6,1791.5,42.72821]
[1746053317529,2.4867,1791.6,1791.5,42.72821]
[1746053317829,7.5082,1791.6,1791.5,41.91621]
[1746053318032,7.5082,1791.6,1791.5,40.8]
[1746053318739,7.5082,1791.6,1791.5,41.91621]
[1746053320237,7.5082,1791.6,1791.5,1.11621]
[1746053327949,1.11621,1791.5,1791.4,41.91622]
[1746053328151,6.71496,1791.5,1791.4,41.91622]
[1746053329142,5.59875,1791.5,1791.4,41.91622]
[1746053330342,2.80961,1791.5,1791.4,41.91622]
[1746053330543,6.71496,1791.5,1791.4,41.91622]
[1746053330744,6.71496,1791.5,1791.4,40.8]
[1746053331250,6.71496,1791.5,1791.4,41.91627]
[1746053331642,6.71496,1791.5,1791.4,40.8]
[1746053331842,6.71496,1791.5,1791.4,41.91627]
[1746053332244,6.71496,1791.5,1791.4,40.8]
[1746053332439,1.11627,1791.4,1791.3,1.11628]
[1746053332648,7.53852,1791.4,1791.3,1.11628]
[1746053332844,7.53852,1791.4,1791.3,41.91628]
[1746053337449,1.1164,1791.3,1791.2,1.11634]
[1746053337646,7.62825,1791.3,1791.2,1.11634]
[1746053338042,7.62825,1791.3,1791.2,41.91634]
[1746053341853,7.62825,1791.3,1791.2,41.9164]
[1746053342049,7.62825,1791.3,1791.2,40.8]
[1746053343056,7.62825,1791.3,1791.2,41.9164]
[1746053345359,1.11646,1791.1,1791.0,1.6712]
[1746053345555,5.02181,1791.1,1791.0,1.11648]
[1746053345755,3.63156,1791.1,1791.0,1.11648]
[1746053345945,3.63156,1791.1,1791.0,41.91648]
[1746053348252,3.63156,1791.1,1791.0,43.54458]
[1746053349361,11.20991,1791.1,1791.0,40.8]
[1746053349858,11.20991,1791.1,1790.9,1.11656]
[1746053349859,10.09345,1791.1,1790.8,6.01153]
[1746053350172,1.11665,1790.8,1790.7,1.96785]
[1746053350353,5.022,1790.8,1790.7,42.76785]
[1746053350551,7.4304,1790.8,1790.7,42.76785]
[1746053351857,7.4304,1790.8,1790.7,44.51785]
[1746053354367,7.4304,1790.8,1790.7,41.91665]
[1746053354565,1.11677,1790.6,1790.5,0.8428]
[1746053354762,1.11683,1790.5,1790.4,3.2078]
[1746053355062,1.11696,1790.3,1790.2,1.11701]
[1746053355264,6.64593,1790.5,1790.4,1.1169]
[1746053355456,5.02228,1790.4,1790.3,1.95974]
[1746053355656,1.11701,1790.3,1790.2,1.11699]
[1746053355858,1.11708,1790.1,1790.0,3.3746]
[1746053356056,1.11708,1790.1,1790.0,41.6428]
[1746053356057,5.02243,1790.1,1790.0,41.6428]
[1746053356256,5.02243,1790.1,1790.0,40.8]
[1746053358262,5.02243,1790.1,1790.0,41.91715]
[1746053358665,5.02243,1790.1,1790.0,42.542]
[1746053359168,5.02243,1790.1,1790.0,43.65915]
[1746053360366,5.02243,1790.1,1790.0,42.542]
[1746053361169,5.02243,1790.1,1790.0,43.65915]
[1746053361365,4.79107,1790.2,1790.1,1.11708]
[1746053361560,1.11707,1790.2,1790.1,2.78158]
[1746053363363,1.11707,1790.2,1790.1,1.6645]
[1746053363669,1.11707,1790.2,1790.1,2.78158]
[1746053363862,1.11337244,1790.2,1790.1,2.78158]
[1746053364370,5.01872244,1790.2,1790.1,1.6645]
[1746053364561,5.01872244,1790.2,1790.1,43.58158]
[1746053365569,1.11337244,1790.2,1790.1,43.58158]
[1746053366572,1.11337244,1790.2,1790.1,42.4645]
[1746053367570,5.01872244,1790.2,1790.1,42.4645]
[1746053368067,5.01872244,1790.2,1790.1,43.58158]
[1746053368569,1.7469,1790.3,1790.2,1.11702]
[1746053368771,5.65225,1790.3,1790.2,4.51102]
[1746053369470,6.76925,1790.3,1790.2,4.51102]
[1746053371373,6.76925,1790.3,1790.2,3.394]
[1746053371773,1.11702,1790.2,1790.1,41.91703]
[1746053371978,6.74217,1790.2,1790.1,41.91703]
[1746053372274,6.74217,1790.2,1790.1,40.8]
[1746053372967,1.11708,1790.1,1790.0,1.9384]
[1746053373167,6.76713,1790.1,1790.0,1.1171]
[1746053373366,1.11715,1790.0,1789.9,3.2078]
[1746053373567,7.6137,1790.0,1789.9,3.2078]
[1746053373972,7.6137,1790.0,1789.9,44.0078]
[1746053374177,7.6137,1790.0,1789.9,45.12501]
[1746053375373,7.6137,1790.0,1789.9,44.0078]
[1746053375867,3.7094,1790.0,1789.9,45.12501]
[1746053376068,7.92288888,1791.0,1790.9,1.11658]
[1746053376274,2.22413425,1791.0,1790.9,7.98038]
[1746053376572,2.22413425,1791.0,1790.9,12.98038]
[1746053376771,2.22413425,1791.0,1790.9,48.78038]
[1746053377073,0.99057425,1791.0,1790.9,53.78038]
[1746053378175,4.25e-06,1791.0,1790.9,53.78038]
[1746053379373,9.66318815,1791.2,1791.1,1.11646]
[1746053379565,7.11948815,1791.2,1791.1,4.32426]
[1746053379768,7.11948815,1791.2,1791.1,9.32426]
[1746053380177,1.7032,1791.6,1791.5,1.11621]
[1746053381976,2.5466,1791.6,1791.5,1.11621]
[1746053394482,2.5466,1791.6,1791.4,3.2078]
[1746053394781,1.11632,1791.4,1791.3,1.11632]
[1746053395480,1.11634,1791.3,1791.2,1.11635]
[1746053397374,2.80803,1791.4,1791.3,1.11634]
[1746053397586,2.444,1791.2,1791.1,1.11646]
[1746053398283,2.444,1791.2,1791.1,4.32426]
[1746053398680,3.5604,1791.2,1791.1,4.32426]
[1746053400283,4.4165,1791.2,1791.1,4.32426]
[1746053400585,3.3001,1791.2,1791.1,4.32426]
[1746053400990,1.11654,1791.0,1790.9,4.32434]
[1746053401189,1.11657,1791.0,1790.9,1.11657]
[1746053403806,1.7097,1791.1,1791.0,1.11652]
[1746053404498,1.7097,1791.1,1791.0,6.11652]
[1746053404695,5.67049,1791.6,1791.5,1.11621]
[1746053404900,5.4267,1791.6,1791.5,1.11621]
[1746053405097,6.54285,1791.6,1791.5,41.91621]
[1746053405298,6.54285,1791.6,1791.5,40.8]
[1746053406105,6.54285,1791.6,1791.5,41.91621]
[1746053406605,6.54285,1791.6,1791.5,40.8]
[1746053407303,1.8714,1791.6,1791.5,41.91621]
[1746053407504,0.999,1791.6,1791.5,46.91621]
[1746053407899,0.999,1791.6,1791.5,47.98711]
[1746053408206,0.999,1791.6,1791.5,42.98711]
[1746053417312,0.999,1791.6,1791.5,41.91621]
[1746053417508,1.8093,1791.6,1791.5,41.91621]
[1746053420712,1.8093,1791.6,1791.5,45.12401]
[1746053421013,0.999,1791.6,1791.5,45.12401]
[1746053436518,2.6116,1791.7,1791.6,1.11615]
[1746053439121,2.6116,1791.7,1791.6,3.01445]
[1746053441221,1.39647,1791.7,1791.6,3.01445]
[1746053441521,0.999,1791.7,1791.6,3.01445]
[1746053442121,0.999,1791.7,1791.6,6.68245]
[1746053442420,0.999,1791.8,1791.7,1.11609]
[1746053442620,0.999,1791.8,1791.7,4.32389]
[1746053443021,0.999,1791.8,1791.7,5.98049]
[1746053444722,2.6186,1791.8,1791.7,5.98049]
[1746053449226,2.6186,1791.8,1791.7,4.32389]
[1746053453725,0.8636,1792.0,1791.9,1.11596]
[1746053454024,0.8636,1792.0,1791.9,4.32376]
[1746053454830,0.8511,1792.3,1792.2,1.11577]
[1746053455026,1.6904,1792.3,1792.2,4.32357]
[1746053456033,1.6904,1792.3,1792.2,4.7340065]
[1746053459932,1.6722,1792.6,1792.2,4.7340065]
[1746053459933,1.6722,1792.6,1792.5,1.11559]
[1746053460235,1.6722,1792.6,1792.5,4.32339]
[1746053460433,1.6722,1792.6,1792.5,45.12339]
[1746053467443,1.6722,1792.6,1792.5,48.74939]
[1746053472342,1.7256,1792.9,1792.8,1.1154]
[1746053472542,1.7256,1792.9,1792.8,4.3232]
[1746053479938,9.9334,1792.9,1792.6,1.11548]
[1746053480139,1.11553,1792.6,1792.5,41.91559]
[1746053480343,1.11553,1792.6,1792.5,40.8]
[1746053480543,2.78182,1792.7,1792.6,1.11553]
[1746053480940,1.11553,1792.6,1792.5,1.11555]
[1746053481143,3.59383,1792.6,1792.5,1.11555]
[1746053481447,9.43233,1792.6,1792.5,41.91555]
[1746053481645,9.43233,1792.6,1792.5,1.11555]
[1746053481844,1.11571,1792.4,1792.2,3.2078]
[1746053482045,1.11571,1792.4,1792.3,1.11567]
[1746053485441,1.11571,1792.3,1792.2,41.91572]
[1746053486851,2.80778,1792.4,1792.3,1.11571]
[1746053487050,1.11571,1792.3,1792.2,41.91574]
[1746053487252,2.80781,1792.3,1792.2,41.91574]
[1746053487549,2.80781,1792.3,1792.2,40.8]
[1746053487743,2.80781,1792.3,1792.2,41.91577]
[1746053487938,2.80781,1792.3,1792.2,40.8]
[1746053488547,2.80781,1792.3,1792.2,41.91577]
[1746053488956,1.6921,1792.3,1792.2,41.91577]
[1746053489144,2.80781,1792.3,1792.2,41.91577]
[1746053494851,2.80781,1792.3,1792.2,40.8]
[1746053496959,3.63411,1792.3,1792.2,40.8]
[1746053497259,1.11584,1792.1,1792.0,4.32364]
[1746053497758,1.11584,1792.1,1792.0,45.12364]
[1746053498057,1.91924,1792.1,1792.0,45.12364]
[1746053499260,0.8263,1792.3,1792.2,1.11577]
[1746053499559,1.94201,1792.3,1792.2,1.11577]
[1746053499754,3.62641,1792.3,1792.2,1.11577]
[1746053499955,3.62641,1792.3,1792.2,2.83917]
[1746053501248,2.80011,1792.3,1792.2,2.83917]
[1746053501962,2.80011,1792.3,1792.2,1.11577]
[1746053502859,1.11577,1792.2,1792.1,1.11579]
[1746053503060,3.69257,1792.2,1792.1,1.11579]
[1746053504358,3.69257,1792.2,1792.1,2.79909]
[1746053504562,1.7377,1792.2,1792.1,2.79909]
[1746053506763,1.11575,1792.3,1792.2,1.11577]
[1746053506964,2.72765,1792.3,1792.2,3.60117]
[1746053508369,6.32957,1792.4,1792.3,1.11571]
[1746053508562,6.00341,1792.5,1792.4,1.11565]
[1746053508866,6.00339,1792.5,1792.4,1.11565]
[1746053509261,4.8878,1792.5,1792.4,2.80405]
[1746053509965,6.00339,1792.5,1792.4,2.80405]
[1746053511066,1.11571,1792.4,1792.3,1.11566]
[1746053511267,2.77051,1792.4,1792.3,1.11566]
[1746053512678,1.11571,1792.3,1792.2,3.49785]
[1746053512879,3.56651,1792.3,1792.2,1.91785]
[1746053514879,1.11584,1792.1,1792.0,40.8]
[1746053515077,4.32364,1792.1,1792.0,40.8]
[1746053515380,4.32364,1792.1,1791.6,4.54315]
[1746053515381,1.11607,1791.8,1791.6,4.54315]
[1746053515877,2.82699,1791.7,1791.6,4.54315]
[1746053516281,2.82699,1791.7,1791.6,45.34315]
[1746053516778,2.82699,1791.7,1791.6,44.227]
[1746053516979,2.82699,1791.7,1791.6,2.5668]
[1746053517280,3.66949,1791.7,1791.6,2.5668]
[1746053518874,3.66949,1791.7,1791.6,0.8311]
[1746053519080,1.11615,1791.6,1791.5,40.8]
[1746053519280,6.35995,1791.6,1791.5,40.8]
[1746053519776,1.11627,1791.4,1791.3,6.89852]
[1746053519979,1.11627,1791.4,1791.3,2.5744]
[1746053520181,1.1164,1791.2,1791.1,11.75974631]
[1746053520381,1.1164,1791.2,1791.1,47.69862]
[1746053522586,1.1164,1791.2,1791.1,47.69866]
[1746053522782,1.1164,1791.2,1791.1,46.5822]
[1746053523583,1.6358,1791.3,1791.2,1.1164]
[1746053523882,2.75214,1791.3,1791.2,1.6109]
[1746053524885,6.36014,1791.3,1791.2,1.6109]
[1746053525685,6.36014,1791.3,1791.2,2.7273]
[1746053528885,6.36014,1791.3,1791.1,4.0573]
[1746053528886,1.1164,1791.2,1791.1,4.0573]
[1746053529079,1.11651,1791.1,1791.0,1.11652]
[1746053529386,1.91271,1791.1,1791.0,1.11652]
[1746053529586,1.91271,1791.1,1791.0,2.70672]
[1746053529990,1.91271,1791.1,1791.0,43.50672]
[1746053530780,0.7962,1791.1,1791.0,43.50672]
[1746053531281,0.7962,1791.1,1791.0,44.31772]
[1746053532383,1.91266,1791.1,1791.0,44.31772]
[1746053532988,1.91266,1791.1,1791.0,43.2012]
[1746053533590,1.91266,1791.1,1791.0,44.31772]
[1746053533890,1.91266,1791.1,1791.0,43.2012]
[1746053534191,1.91266,1791.1,1791.0,44.31772]
[1746053534786,1.91266,1791.1,1791.0,47.52552]
[1746053537096,1.91266,1791.1,1791.0,44.31772]
[1746053538288,1.11646,1791.1,1791.0,44.31772]
[1746053538597,5.51698,1791.3,1791.2,1.1164]
[1746053540096,7.15978,1791.3,1791.2,1.1164]
[1746053543997,1.1164,1791.2,1791.1,2.72831]
[1746053544500,2.8011,1791.2,1791.1,2.72831]
[1746053544700,2.8011,1791.2,1791.1,43.52831]
[1746053552700,4.0533,1791.4,1791.3,1.11634]
[1746053552904,5.1696,1791.4,1791.3,1.11634]
[1746053553306,5.1696,1791.4,1791.3,3.52004]
[1746053553603,6.7506,1791.4,1791.3,3.52004]
[1746053554700,5.6343,1791.4,1791.3,3.52004]
[1746053554906,5.90507,1791.4,1791.3,3.52004]
[1746053555299,6.01057,1791.6,1791.5,1.11621]
[1746053555498,9.63157,1791.6,1791.5,1.11621]
[1746053558107,6.42377,1791.6,1791.5,1.11621]
[1746053559209,1.11621,1791.5,1791.4,1.11623]
[1746053559410,2.71081,1791.5,1791.4,1.11623]
[1746053559802,1.5946,1791.5,1791.4,41.91623]
[1746053560504,1.5946,1791.5,1791.4,44.47763]
[1746053569416,1.5946,1791.5,1791.4,47.68543]
[1746053574015,2.71081,1791.5,1791.4,47.68543]
[1746053574212,1.5946,1791.5,1791.4,47.68543]
[1746053575613,1.5946,1791.5,1791.4,44.47763]
[1746053577407,4.8024,1791.5,1791.2,1.11634]
[1746053577609,1.11643,1791.2,1791.1,1.11643]
[1746053577808,3.2078,1791.3,1790.9,0.7947]
[1746053578013,2.80839,1791.1,1791.0,1.11647]
[1746053578608,1.6919,1791.1,1791.0,1.11647]
[1746053579018,3.4365,1791.1,1791.0,1.11647]
[1746053579919,3.4365,1791.1,1791.0,2.83767]
[1746053582518,3.4365,1791.1,1791.0,43.63767]
[1746053584123,3.4365,1791.1,1791.0,46.84547]
[1746053585318,3.4365,1791.1,1791.0,6.04547]
[1746053585519,1.11655,1791.0,1790.9,1.11657]
[1746053585725,2.76015,1791.0,1790.8,4.3244]
[1746053585920,2.76015,1791.0,1790.9,40.8]
[1746053586116,2.76015,1791.0,1790.9,41.91658]
[1746053586822,1.6436,1791.0,1790.9,41.91658]
[1746053587624,2.76012,1791.0,1790.9,41.91658]
[1746053588527,5.2949,1791.1,1791.0,1.11652]
[1746053588829,1.6919,1791.1,1791.0,4.32432]
[1746053589027,1.6919,1791.1,1791.0,6.06892]
[1746053589212,2.80836,1791.1,1791.0,2.86112]
[1746053589525,2.80836,1791.1,1791.0,1.11652]
[1746053590024,2.80836,1791.1,1790.9,41.91654]
[1746053590232,1.6019,1791.0,1790.9,41.91654]
[1746053590728,1.6919,1791.1,1791.0,1.11652]
[1746053590921,1.11644,1791.2,1791.1,1.11645]
[1746053591729,2.71834,1791.2,1791.1,1.11645]
[1746053592328,3.56794,1791.2,1791.1,1.11645]
[1746053596021,2.4515,1791.2,1791.1,1.11645]
[1746053596917,2.4515,1791.2,1791.1,2.72625]
[1746053597329,0.7893,1791.3,1791.2,1.1164]
[1746053597526,4.4225,1791.4,1791.3,1.11634]
[1746053597732,6.0458,1791.4,1791.3,1.11634]
[1746053597927,7.16207,1791.4,1791.3,2.72614]
[1746053598229,6.0458,1791.4,1791.3,2.72614]
[1746053599232,7.16207,1791.4,1791.3,2.72614]
[1746053606337,6.0458,1791.4,1791.3,2.72614]
[1746053607540,1.6233,1791.4,1791.3,2.72614]
[1746053607836,1.6233,1791.4,1791.3,3.53434]
[1746053609538,2.73957,1791.4,1791.3,3.53434]
[1746053609839,2.73957,1791.4,1791.3,2.72614]
[1746053610233,2.73957,1791.4,1791.3,1.11634]
[1746053612636,2.73957,1791.4,1791.3,2.86314]
[1746053614543,1.6233,1791.4,1791.3,2.86314]
[1746053614743,5.53779,1791.6,1791.5,1.11621]
[1746053615047,7.21049,1791.6,1791.5,1.11621]
[1746053622062,3.61349,1791.6,1791.5,1.11621]
[1746053624064,1.9906,1791.7,1791.6,1.11615]
[1746053624258,1.9906,1791.7,1791.6,3.70865]
[1746053624456,3.6473,1791.7,1791.6,3.70865]
[1746053625965,2.5312,1791.7,1791.6,3.70865]
[1746053626164,3.64729,1791.7,1791.6,3.70865]
[1746053626363,2.5312,1791.7,1791.6,3.70865]
[1746053629964,3.64729,1791.7,1791.6,3.70865]
[1746053630265,2.5312,1791.7,1791.6,1.11615]
[1746053631961,1.6567,1791.7,1791.6,2.71815]
[1746053632168,0.7927,1791.8,1791.7,1.11609]
[1746053632467,0.7927,1791.8,1791.7,3.53099]
[1746053633467,6.1423,1791.9,1791.8,1.11602]
[1746053633666,7.25826,1791.9,1791.8,2.71802]
[1746053633965,6.1423,1791.9,1791.8,2.71802]
[1746053634161,5.2748,1791.9,1791.8,2.71802]
[1746053635464,1.6778,1791.9,1791.8,2.71802]
[1746053635668,1.6778,1791.9,1791.8,43.51802]
[1746053636666,1.6778,1791.9,1791.8,46.72582]
[1746053637565,1.6778,1791.9,1791.8,43.51802]
[1746053637863,2.80804,1792.1,1792.0,1.1159]
[1746053638667,1.6922,1792.1,1792.0,1.1159]
[1746053639061,3.44,1792.1,1792.0,1.1159]
[1746053648073,5.876,1792.4,1792.1,1.11584]
[1746053648268,3.596,1792.4,1792.3,1.11571]
[1746053648570,6.35746,1792.4,1792.3,1.11571]
[1746053648874,6.35746,1792.4,1792.3,41.91571]
[1746053650173,0.7925,1792.5,1792.4,1.11565]
[1746053650376,1.90809,1792.5,1792.4,1.11565]
[1746053651278,3.57639,1792.5,1792.4,1.11565]
[1746053654479,1.11565,1792.4,1792.3,41.91568]
[1746053654678,2.78525,1792.4,1792.3,41.91568]
[1746053654976,2.78525,1792.4,1792.3,40.8]
[1746053655177,6.37925,1792.4,1792.3,40.8]
[1746053655481,9.58705,1792.4,1792.3,40.8]
[1746053655686,1.1159,1792.0,1791.9,4.32371]
[1746053656180,1.1159,1792.0,1791.9,45.12371]
[1746053657377,1.5774,1792.0,1791.9,45.12371]
[1746053657982,0.8497,1792.1,1792.0,1.1159]
[1746053658174,0.8497,1792.1,1792.0,3.6138]
[1746053658375,0.8497,1792.1,1792.0,4.4085]
[1746053658684,2.69323,1792.2,1792.1,1.11584]
[1746053658980,1.1159,1792.1,1792.0,1.11585]
[1746053659280,2.6933,1792.1,1792.0,1.11585]
[1746053662884,1.5774,1792.1,1792.0,1.11585]
[1746053663775,1.5774,1792.1,1792.0,2.83595]
[1746053666188,2.69324,1792.1,1792.0,2.83595]
[1746053666485,1.98282,1792.2,1792.1,1.11584]
[1746053666875,3.67142,1792.2,1792.1,2.75794]
[1746053667883,3.67142,1792.2,1792.1,1.11584]
[1746053669585,5.34519,1792.2,1791.9,40.8]
[1746053669781,1.1159,1792.0,1791.9,41.9159]
[1746053670283,1.9054,1792.0,1791.9,41.9159]
[1746053672188,2.81136,1792.1,1792.0,1.1159]
[1746053672387,2.81136,1792.1,1792.0,2.8522]
[1746053672782,1.6955,1792.1,1792.0,3.6563]
[1746053673188,1.98277,1792.2,1792.1,1.11584]
[1746053673484,1.98277,1792.2,1792.1,2.85214]
[1746053674280,1.98277,1792.2,1792.1,2.8487652]
[1746053674479,3.2078,1792.5,1792.4,1.11565]
[1746053674684,9.2631,1793.2,1792.6,1.11553]
[1746053674888,1.6598,1793.1,1792.6,4.32333]
[1746053675192,2.77505,1793.1,1792.6,4.32333]
[1746053675490,12.93496149,1792.8,1792.7,1.11546]
[1746053675691,12.93496149,1792.8,1792.7,2.70466]
[1746053676091,12.93496149,1792.8,1792.7,43.50466]
[1746053676685,14.59476149,1792.8,1792.7,43.50466]
[1746053680294,1.6598,1792.8,1792.7,43.50466]
[1746053683793,2.7752,1792.8,1792.7,43.50466]
[1746053685189,2.7752,1792.8,1792.7,40.8]
[1746053685697,2.7752,1792.8,1792.7,41.91546]
[1746053686196,2.7752,1792.8,1792.7,40.8]
[1746053686589,2.7752,1792.8,1792.7,41.91546]
[1746053686791,2.7752,1792.8,1792.7,40.8]
[1746053687501,2.7752,1792.8,1792.7,41.91546]
[1746053689097,1.6598,1792.8,1792.7,41.91546]
[1746053689296,2.7752,1792.8,1792.7,43.59516]
[1746053690796,1.6598,1792.8,1792.7,43.59516]
[1746053691502,5.56239,1792.9,1792.8,1.1154]
[1746053691700,5.56239,1792.9,1792.8,6.7502]
[1746053692201,1.97139,1792.9,1792.8,47.5502]
[1746053695202,1.97139,1792.9,1792.8,45.1232]
[1746053697402,3.60749,1792.9,1792.8,45.1232]
[1746053704402,3.60749,1792.9,1792.8,46.8456]
[1746053704601,2.4921,1792.9,1792.8,46.8456]
[1746053704908,1.11532,1793.0,1792.9,1.11534]
[1746053705104,3.49982,1793.0,1792.9,1.11534]
[1746053706000,3.49982,1793.0,1792.9,2.85884]
[1746053707701,0.8428,1793.1,1792.9,2.85884]
[1746053708007,7.21321,1793.2,1793.1,1.11521]
[1746053708807,7.21321,1793.2,1793.1,3.58481]
[1746053709201,5.2496,1793.2,1793.1,3.58481]
[1746053710713,3.591,1793.2,1793.1,3.58481]
[1746053711003,4.70615,1793.2,1793.1,3.58481]
[1746053711204,1.11515,1793.2,1793.1,3.58481]
[1746053711401,0.8047,1793.4,1793.1,2.4696]
[1746053711606,1.91973,1793.4,1793.3,1.11509]
[1746053712004,1.91973,1793.4,1793.3,2.69899]
[1746053712203,1.11503,1793.4,1793.3,2.69899]
[1746053713106,2.80283,1793.4,1793.3,2.69899]
[1746053717409,4.3894,1793.5,1793.4,1.11503]
[1746053717708,6.37538,1794.2,1793.4,5.6634]